[Event "GER-ch Blitz 2019"]
[Site "Magdeburg"]
[Date "2019.05.25"]
[Round "29.14"]
[White "Koch, Thomas"]
[Black "Voege, Tobias"]
[Result "1-0"]
[ECO "D07"]
[WhiteElo "2474"]
[BlackElo "2294"]
[Annotator "ChessBase"]
[PlyCount "74"]
[EventDate "2019.05.25"]
[EventType "tourn"]
[EventCountry "GER"]
[Tiebreak "Number of wins+Number of black wins"]
[SourceTitle "playchess.com"]
[Source "ChessBase"]
[SourceQuality "1"]
[TimeControl "180+2"]

1. d4 {[%emt 0:00:00]} d5 {[%emt 0:00:00]} 2. c4 {[%emt 0:00:00]} Nc6 {[%emt 0:
00:01]} 3. Nf3 {[%emt 0:00:01]} Bg4 {[%emt 0:00:01]} 4. Nc3 {[%emt 0:00:03]} e6
{[%emt 0:00:01]} 5. cxd5 {[%emt 0:00:05]} exd5 {[%emt 0:00:01]} 6. Bf4 {
[%emt 0:00:03]} Bb4 {[%emt 0:00:02]} 7. e3 {[%emt 0:00:03]} Nge7 {[%emt 0:00:
07]} 8. Be2 {[%emt 0:00:03]} O-O {[%emt 0:00:02]} 9. O-O {[%emt 0:00:02]} Ng6 {
[%emt 0:00:23]} 10. Bg3 {[%emt 0:00:02]} Bxc3 {[%emt 0:00:17]} 11. bxc3 {
[%emt 0:00:02]} Rb8 {[%emt 0:00:01]} 12. h3 {[%emt 0:00:07]} Be6 {[%emt 0:00:
12]} 13. Bb5 {[%emt 0:00:17]} Nce7 {[%emt 0:00:14]} 14. Re1 {[%emt 0:00:02]} a6
{[%emt 0:00:04]} 15. Bf1 {[%emt 0:00:06]} Nf5 {[%emt 0:00:11]} 16. Bh2 {
[%emt 0:00:01]} Nd6 {[%emt 0:00:01]} 17. Bd3 {[%emt 0:00:09]} f5 {[%emt 0:00:
08]} 18. Qc2 {[%emt 0:00:21]} b5 {[%emt 0:00:15]} 19. a4 {[%emt 0:00:02]} Rb6 {
[%emt 0:00:04]} 20. axb5 {[%emt 0:00:02]} axb5 {[%emt 0:00:01]} 21. Ra7 {
[%emt 0:00:04]} Ne7 {[%emt 0:00:56]} 22. Ne5 {[%emt 0:00:07]} Nec8 {[%emt 0:00:
02]} 23. Ra8 {[%emt 0:00:08]} Qe7 {[%emt 0:00:11]} 24. f3 {[%emt 0:00:07]} h6 {
[%emt 0:00:15]} 25. Ng6 {[%emt 0:00:01]} Qf7 {[%emt 0:00:05]} 26. Nxf8 {
[%emt 0:00:02]} Qxf8 {[%emt 0:00:06]} 27. e4 {[%emt 0:00:08]} f4 {[%emt 0:00:
06]} 28. Qd2 {[%emt 0:00:07]} g5 {[%emt 0:00:02]} 29. exd5 {[%emt 0:00:06]}
Bxd5 {[%emt 0:00:01]} 30. Raa1 {[%emt 0:00:05]} Nc4 {[%emt 0:00:02]} 31. Bxc4 {
[%emt 0:00:04]} Bxc4 {[%emt 0:00:02]} 32. Re5 {[%emt 0:00:04]} Nd6 {[%emt 0:00:
02]} 33. Ra7 {[%emt 0:00:08]} Rc6 {[%emt 0:00:01]} 34. Qc2 {[%emt 0:00:05]} Nf7
{[%emt 0:00:03]} 35. Rf5 {[%emt 0:00:04]} Qe7 {[%emt 0:00:01]} 36. Ra1 {
[%emt 0:00:11]} Re6 {[%emt 0:00:07]} 37. Qd1 {[%emt 0:00:04]} Re3 {[%emt 0:00:
00]} 1-0

[Event "GER-ch Blitz 2019"]
[Site "Magdeburg"]
[Date "2019.05.25"]
[Round "29.15"]
[White "Feuerstack, Aljoscha"]
[Black "Wichmann, Cliff"]
[Result "0-1"]
[ECO "C05"]
[WhiteElo "2441"]
[BlackElo "2280"]
[Annotator "NA"]
[PlyCount "50"]
[EventDate "2019.05.25"]
[EventType "tourn"]
[EventCountry "GER"]
[Tiebreak "Number of wins+Number of black wins"]
[SourceTitle "playchess.com"]
[Source "ChessBase"]
[SourceQuality "1"]
[TimeControl "180+2"]

1. e4 {[%emt 0:00:00]} e6 {[%emt 0:00:00]} 2. d4 {[%emt 0:00:00]} d5 {[%emt 0:
00:00]} 3. Nd2 {[%emt 0:00:01]} Nf6 {[%emt 0:00:00]} 4. e5 {[%emt 0:00:02]}
Nfd7 {[%emt 0:00:01]} 5. Bd3 {[%emt 0:00:01]} c5 {[%emt 0:00:01]} 6. c3 {
[%emt 0:00:01]} Nc6 {[%emt 0:00:01]} 7. Ngf3 {[%emt 0:00:01]} g6 {[%emt 0:00:
01]} 8. h4 {[%emt 0:00:23]} h6 {[%emt 0:00:02]} 9. Bc2 {[%emt 0:00:01]} b6 {
[%emt 0:00:18]} 10. a3 {[%emt 0:00:25]} b5 {[%emt 0:00:29]} 11. Nf1 {[%emt 0:
00:17]} b4 {[%emt 0:00:04]} 12. axb4 {[%emt 0:00:09]} cxb4 {[%emt 0:00:04]} 13.
h5 {[%emt 0:00:14]} g5 {[%emt 0:00:06]} 14. Ne3 {[%emt 0:00:04]} Be7 {[%emt 0:
00:07]} 15. Ng4 {[%emt 0:00:05]} a5 {[%emt 0:00:03]} 16. O-O {[%emt 0:00:10]}
Qb6 {[%emt 0:00:18]} 17. Ne1 {[%emt 0:00:11]} Ba6 {[%emt 0:00:09]} 18. Nd3 {
[%emt 0:00:02]} Rc8 {[%emt 0:00:10]} 19. Kh1 {[%emt 0:00:11]} Na7 {[%emt 0:00:
26]} 20. Bd2 {[%emt 0:00:27]} Nb5 {[%emt 0:00:07]} 21. Qe1 {[%emt 0:00:20]}
Nxd4 {[%emt 0:00:09]} 22. cxd4 {[%emt 0:00:15]} Rxc2 {[%emt 0:00:02]} 23. Qe3 {
[%emt 0:00:02]} Qb5 {[%emt 0:00:17]} 24. Nxb4 {[%emt 0:00:18]} axb4 {[%emt 0:
00:13]} 25. f4 {[%emt 0:00:02]} Qe2 {[%emt 0:00:09]} 0-1